[Event "22nd Ruzomberok Open 2019"]
[Site "Ruzomberok"]
[Date "2019.07.04"]
[Round "6.9"]
[White "Mrvova, Alena"]
[Black "Viczencz, Peter"]
[Result "1-0"]
[ECO "B20"]
[WhiteElo "2153"]
[BlackElo "2014"]
[Annotator "NA"]
[PlyCount "97"]
[EventDate "2019.06.29"]
[EventType "swiss"]
[EventCountry "SVK"]
[SourceTitle "playchess.com"]
[Source "ChessBase"]
[SourceQuality "1"]
[TimeControl "40/5400+30:1800+30"]

1. e4 {[%emt 0:00:00]} c5 {[%emt 0:00:00]} 2. g3 {[%emt 0:00:00]} e6 {[%emt 0:00:33]} 3. Bg2 {[%emt 0:00:51]} Nc6 {[%emt 0:00:27]} 4. f4 {[%emt 0:02:52]} Nge7 {[%emt 0:00:29]} 5. Nf3 {[%emt 0:00:43]} g6 {[%emt 0:00:11]} 6. O-O {[%emt 0:01:46]} Bg7 {[%emt 0:00:06]} 7. Nc3 {[%emt 0:01:29]} O-O {[%emt 0:00:14]} 8. Ne2 {[%emt 0:01:40]} Qb6 {[%emt 0:02:33]} 9. Kh1 {[%emt 0:00:23]} d6 {[%emt 0:01:43]} 10. c3 {[%emt 0:02:42]} f5 {[%emt 0:01:39]} 11. d3 {[%emt 0:00:13]} e5 {[%emt 0:08:57]} 12. Qa4 {[%emt 0:04:19]} h6 {[%emt 0:03:35]} 13. Nh4 {[%emt 0:01:34]} Kh7 {[%emt 0:00:27]} 14. Qc2 {[%emt 0:00:58]} Be6 {[%emt 0:02:15]} 15. Be3 {[%emt 0:04:27]} a5 {[%emt 0:00:54]} 16. Ng1 {[%emt 0:04:11]} d5 {[%emt 0:04:39]} 17. exf5 {[%emt 0:02:32]} Nxf5 {[%emt 0:01:17]} 18. Nxf5 {[%emt 0:00:10]} Rxf5 {[%emt 0:00:24]} 19. Bh3 {[%emt 0:05:27]} Rf6 {[%emt 0:00:27]} 20. fxe5 {[%emt 0:00:29]} Rxf1 {[%emt 0:00:49]} 21. Rxf1 {[%emt 0:00:09]} Bxh3 {[%emt 0:00:28]} 22. Nxh3 {[%emt 0:00:08]} Nxe5 {[%emt 0:00:07]} 23. d4 {[%emt 0:06:11]} Nc4 {[%emt 0:01:01]} 24. Bg1 {[%emt 0:00:09]} cxd4 {[%emt 0:12:08]} 25. cxd4 {[%emt 0:08:01]} Re8 {[%emt 0:04:33]} 26. Nf4 {[%emt 0:02:47]} Qd6 {[%emt 0:05:48]} 27. b3 {[%emt 0:07:54]} Ne3 {[%emt 0:01:20]} 28. Qe2 {[%emt 0:01:38]} Bxd4 {[%emt 0:02:25]} 29. Ng2 {[%emt 0:01:51]} Nxf1 {[%emt 0:00:46]} 30. Qxe8 {[%emt 0:00:06]} Bg7 {[%emt 0:00:14]} 31. Qf7 {[%emt 0:03:51]} Nd2 {[%emt 0:03:14]} 32. Nf4 {[%emt 0:05:37]} d4 {[%emt 0:03:38]} 33. Qxb7 {[%emt 0:00:54]} d3 {[%emt 0:01:00]} 34. Qb6 {[%emt 0:01:16]} Qxb6 {[%emt 0:03:44]} 35. Bxb6 {[%emt 0:00:04]} Ne4 {[%emt 0:00:06]} 36. Nxd3 {[%emt 0:00:11]} Bc3 {[%emt 0:00:08]} 37. Kg2 {[%emt 0:01:48]} Kg7 {[%emt 0:01:28]} 38. Kf3 {[%emt 0:00:23]} Nd6 {[%emt 0:00:27]} 39. Ke3 g5 {[%emt 0:00:53]} 40. Bc7 {[%emt 0:05:23]} Nb5 {[%emt 0:01:08]} 41. Be5+ {[%emt 0:32:15]} Kg6 {[%emt 0:30:55]} 42. a4 {[%emt 0:00:09]} Kf5 {[%emt 0:02:03]} 43. g4+ {[%emt 0:05:00]} Ke6 {[%emt 0:00:15]} 44. axb5 {[%emt 0:00:13]} Bxe5 {[%emt 0:00:07]} 45. Nxe5 {[%emt 0:02:52]} Kxe5 {[%emt 0:00:05]} 46. b6 {[%emt 0:00:02]} Kd6 {[%emt 0:00:06]} 47. Kd4 {[%emt 0:00:10]} Kc6 {[%emt 0:00:06]} 48. b7 {[%emt 0:00:06]} Kxb7 {[%emt 0:00:04]} 49. Kc5 {[%emt 0:00:03]} 1-0

[Event "22nd Ruzomberok Open 2019"]
[Site "Ruzomberok"]
[Date "2019.07.04"]
[Round "6.13"]
[White "Salomons, Lorenzo"]
[Black "Bemak, Mikhail"]
[Result "0-1"]
[ECO "E46"]
[WhiteElo "1842"]
[BlackElo "2102"]
[Annotator "NA"]
[PlyCount "56"]
[EventDate "2019.06.29"]
[EventType "swiss"]
[EventCountry "SVK"]
[SourceTitle "playchess.com"]
[Source "ChessBase"]
[SourceQuality "1"]
[TimeControl "40/5400+30:1800+30"]

1. d4 {[%emt 0:00:00]} Nf6 {[%emt 0:00:00]} 2. c4 {[%emt 0:00:00]} e6 {[%emt 0:00:06]} 3. Nc3 {[%emt 0:00:00]} Bb4 {[%emt 0:00:06]} 4. e3 {[%emt 0:00:07]} O-O {[%emt 0:01:19]} 5. Nge2 {[%emt 0:00:17]} b6 {[%emt 0:01:01]} 6. a3 {[%emt 0:00:34]} Bxc3+ {[%emt 0:00:22]} 7. Nxc3 {[%emt 0:00:19]} Bb7 {[%emt 0:00:04]} 8. f3 {[%emt 0:00:52]} d5 {[%emt 0:00:28]} 9. cxd5 {[%emt 0:01:46]} exd5 {[%emt 0:01:30]} 10. Bd3 {[%emt 0:02:29]} c5 {[%emt 0:01:37]} 11. O-O {[%emt 0:00:17]} Re8 {[%emt 0:01:45]} 12. Ne2 {[%emt 0:16:56]} Nc6 {[%emt 0:07:57]} 13. Bd2 {[%emt 0:04:48]} c4 {[%emt 0:13:09]} 14. Bc2 {[%emt 0:06:04]} b5 {[%emt 0:00:51]} 15. Qe1 {[%emt 0:02:32]} Qd6 {[%emt 0:05:27]} 16. Qh4 {[%emt 0:02:10]} a5 {[%emt 0:04:47]} 17. Ng3 {[%emt 0:01:10]} Ne7 {[%emt 0:00:56]} 18. Nf5 {[%emt 0:07:54]} Nxf5 {[%emt 0:01:22]} 19. Bxf5 {[%emt 0:00:02]} b4 {[%emt 0:08:28]} 20. Rfd1 {[%emt 0:04:58]} g6 {[%emt 0:02:56]} 21. e4 {[%emt 0:09:47]} dxe4 {[%emt 0:02:22]} 22. Bf4 {[%emt 0:00:35]} Qb6 {[%emt 0:01:36]} 23. Bg5 {[%emt 0:01:11]} Ra6 {[%emt 0:13:23]} 24. axb4 {[%emt 0:03:28]} exf3 {[%emt 0:04:39]} 25. b5 {[%emt 0:00:27]} Qxb5 {[%emt 0:00:28]} 26. Bxf6 {[%emt 0:00:29]} Qxf5 {[%emt 0:00:24]} 27. Be5 {[%emt 0:04:39]} f6 {[%emt 0:00:45]} 28. Bc7 {[%emt 0:02:28]} Re2 {[%emt 0:04:55]} 0-1

[Event "22nd Ruzomberok Open 2019"]
[Site "Ruzomberok"]
[Date "2019.07.04"]
[Round "6.14"]
[White "Hrnciar, Roman"]
[Black "Stanko, Ivan"]
[Result "1-0"]
[ECO "A03"]
[WhiteElo "2096"]
[BlackElo "1859"]
[Annotator "NA"]
[PlyCount "72"]
[EventDate "2019.06.29"]
[EventType "swiss"]
[EventCountry "SVK"]
[SourceTitle "playchess.com"]
[Source "ChessBase"]
[SourceQuality "1"]
[TimeControl "40/5400+30:1800+30"]

1. f4 {[%emt 0:00:02]} d5 {[%emt 0:00:01]} 2. e3 {[%emt 0:00:08]} g6 {[%emt 0:00:59]} 3. Nf3 {[%emt 0:02:46]} Bg7 {[%emt 0:00:33]} 4. Be2 {[%emt 0:00:11]} Nf6 {[%emt 0:00:45]} 5. O-O {[%emt 0:00:25]} O-O {[%emt 0:00:24]} 6. c3 {[%emt 0:01:47]} c5 {[%emt 0:02:13]} 7. d4 {[%emt 0:00:50]} Nbd7 {[%emt 0:08:50]} 8. Bd3 {[%emt 0:02:12]} c4 {[%emt 0:03:07]} 9. Bc2 {[%emt 0:00:12]} Nb6 {[%emt 0:00:37]} 10. Ne5 {[%emt 0:04:55]} Nbd7 {[%emt 0:01:41]} 11. Nd2 {[%emt 0:00:19]} Nxe5 {[%emt 0:02:44]} 12. fxe5 {[%emt 0:02:34]} Ng4 {[%emt 0:07:28]} 13. Qe2 {[%emt 0:03:31]} f5 {[%emt 0:02:41]} 14. exf6 {[%emt 0:05:30]} exf6 {[%emt 0:00:24]} 15. h3 {[%emt 0:00:47]} Nh6 {[%emt 0:00:32]} 16. e4 {[%emt 0:05:41]} Re8 {[%emt 0:00:32]} 17. Qf3 {[%emt 0:01:39]} Be6 {[%emt 0:01:44]} 18. exd5 {[%emt 0:02:28]} Bxd5 {[%emt 0:00:50]} 19. Be4 {[%emt 0:02:37]} Rxe4 {[%emt 0:00:52]} 20. Nxe4 {[%emt 0:00:08]} f5 {[%emt 0:00:04]} 21. Bxh6 {[%emt 0:00:09]} Bxh6 {[%emt 0:00:17]} 22. Nf6+ {[%emt 0:00:22]} Qxf6 {[%emt 0:04:28]} 23. Qxd5+ {[%emt 0:00:15]} Qf7 {[%emt 0:02:24]} 24. Qxf7+ {[%emt 0:02:34]} Kxf7 {[%emt 0:07:40]} 25. Rae1 {[%emt 0:00:50]} b5 {[%emt 0:02:34]} 26. g4 {[%emt 0:02:30]} f4 {[%emt 0:00:23]} 27. Re5 {[%emt 0:00:18]} Rb8 {[%emt 0:00:30]} 28. g5 {[%emt 0:00:11]} Bg7 {[%emt 0:00:17]} 29. Rxf4+ {[%emt 0:00:14]} Kg8 {[%emt 0:00:06]} 30. Re7 {[%emt 0:00:10]} a5 {[%emt 0:02:22]} 31. Rfe4 {[%emt 0:03:25]} Kf8 {[%emt 0:06:45]} 32. d5 {[%emt 0:01:38]} b4 {[%emt 0:00:23]} 33. d6 {[%emt 0:00:08]} bxc3 {[%emt 0:00:19]} 34. d7 {[%emt 0:00:38]} Bd4+ {[%emt 0:00:47]} 35. Kh1 {[%emt 0:00:36]} Bc5 {[%emt 0:05:55]} 36. Re8+ {[%emt 0:00:18] Kxe8} Rxe8 1-0

[Event "22nd Ruzomberok Open 2019"]
[Site "Ruzomberok"]
[Date "2019.07.04"]
[Round "6.15"]
[White "Kapicakova, Lucia"]
[Black "Holly, Andrej"]
[Result "0-1"]
[ECO "A04"]
[WhiteElo "1776"]
[BlackElo "2046"]
[Annotator "NA"]
[PlyCount "58"]
[EventDate "2019.06.29"]
[EventType "swiss"]
[EventCountry "SVK"]
[SourceTitle "playchess.com"]
[Source "ChessBase"]
[SourceQuality "1"]
[TimeControl "40/5400+30:1800+30"]

1. Nf3 {[%emt 0:00:02]} c5 {[%emt 0:00:00]} 2. g3 {[%emt 0:00:00]} Nc6 {[%emt 0:00:28]} 3. Bg2 {[%emt 0:00:00]} e6 {[%emt 0:00:27]} 4. d3 {[%emt 0:00:00]} Nf6 {[%emt 0:00:55]} 5. O-O {[%emt 0:00:44]} d5 {[%emt 0:01:01]} 6. Nbd2 {[%emt 0:00:19]} Be7 {[%emt 0:01:07]} 7. e4 {[%emt 0:00:09]} b6 {[%emt 0:01:09]} 8. e5 {[%emt 0:01:59]} Nd7 {[%emt 0:01:56]} 9. Re1 {[%emt 0:00:24]} Bb7 {[%emt 0:03:18]} 10. Nf1 {[%emt 0:01:33]} Qc7 {[%emt 0:01:49]} 11. Qe2 {[%emt 0:05:16]} h6 {[%emt 0:01:03]} 12. c3 {[%emt 0:05:29]} g5 {[%emt 0:04:14]} 13. h3 {[%emt 0:04:36]} O-O-O {[%emt 0:02:37]} 14. d4 {[%emt 0:03:55]} Rdg8 {[%emt 0:05:29]} 15. N1h2 {[%emt 0:09:21]} h5 {[%emt 0:02:58]} 16. g4 {[%emt 0:01:42]} Kb8 {[%emt 0:03:45]} 17. Be3 {[%emt 0:07:31]} f5 {[%emt 0:11:08]} 18. a3 {[%emt 0:13:49]} hxg4 {[%emt 0:05:23]} 19. hxg4 {[%emt 0:00:26]} f4 {[%emt 0:06:17]} 20. Bd2 {[%emt 0:02:16]} Rh6 {[%emt 0:00:13]} 21. Qd3 {[%emt 0:02:08]} Rgh8 {[%emt 0:00:54]} 22. Kf1 {[%emt 0:08:36]} Qc8 {[%emt 0:02:37]} 23. Kg1 {[%emt 0:05:15]} R8h7 {[%emt 0:00:27]} 24. Bf1 {[%emt 0:04:52]} Qh8 {[%emt 0:00:45]} 25. Kg2 {[%emt 0:05:26]} Rxh2+ {[%emt 0:09:23]} 26. Nxh2 {[%emt 0:00:55]} Rxh2+ {[%emt 0:00:02]} 27. Kf3 {[%emt 0:00:55]} Ncxe5+ {[%emt 0:00:26]} 28. dxe5 {[%emt 0:07:31]} d4+ {[%emt 0:00:45]} 29. Ke2 {[%emt 0:01:04]} Nxe5 {[%emt 0:00:02]} 0-1

[Event "22nd Ruzomberok Open 2019"]
[Site "Ruzomberok"]
[Date "2019.07.04"]
[Round "6.16"]
[White "Bartek, Ladislav"]
[Black "Marsina, Stefan"]
[Result "1-0"]
[ECO "C11"]
[WhiteElo "2042"]
[BlackElo "1857"]
[Annotator "NA"]
[PlyCount "65"]
[EventDate "2019.06.29"]
[EventType "swiss"]
[EventCountry "SVK"]
[SourceTitle "playchess.com"]
[Source "ChessBase"]
[SourceQuality "1"]
[TimeControl "40/5400+30:1800+30"]

1. e4 {[%emt 0:00:00]} e6 {[%emt 0:00:00]} 2. d4 {[%emt 0:00:00]} d5 {[%emt 0:00:00]} 3. Nc3 {[%emt 0:00:00]} Nf6 {[%emt 0:00:00]} 4. e5 {[%emt 0:00:00]} Nfd7 {[%emt 0:00:00]} 5. f4 {[%emt 0:00:00]} c5 {[%emt 0:00:05]} 6. Nf3 {[%emt 0:00:06]} Nc6 {[%emt 0:00:16]} 7. Be3 {[%emt 0:00:08]} a6 {[%emt 0:03:32]} 8. Qd2 {[%emt 0:00:10]} Be7 {[%emt 0:01:06]} 9. dxc5 {[%emt 0:00:56]} Nxc5 {[%emt 0:00:52]} 10. O-O-O {[%emt 0:03:40]} O-O {[%emt 0:13:26]} 11. f5 {[%emt 0:00:48]} Ne4 {[%emt 0:04:29]} 12. Nxe4 {[%emt 0:00:46]} dxe4 {[%emt 0:00:04]} 13. Qc3 {[%emt 0:05:14]} Qa5 {[%emt 0:06:10]} 14. Qxa5 {[%emt 0:01:26]} Nxa5 {[%emt 0:00:02]} 15. f6 {[%emt 0:06:41]} gxf6 {[%emt 0:01:28]} 16. exf6 {[%emt 0:01:23]} Bxf6 {[%emt 0:00:07]} 17. Ng5 {[%emt 0:00:34]} Bxg5 {[%emt 0:31:45]} 18. Bxg5 {[%emt 0:00:07]} f6 {[%emt 0:00:04]} 19. Bh6 {[%emt 0:00:32]} Re8 {[%emt 0:00:02]} 20. Be2 Nc6 {[%emt 0:00:08]} 21. Bh5 {[%emt 0:03:46]} Re7 {[%emt 0:09:51]} 22. Rhf1 {[%emt 0:00:59]} f5 {[%emt 0:01:24]} 23. g4 {[%emt 0:01:21]} Bd7 {[%emt 0:16:22]} 24. gxf5 {[%emt 0:00:23]} exf5 {[%emt 0:07:44]} 25. Rg1+ {[%emt 0:00:17]} Kh8 {[%emt 0:00:05]} 26. Bg5 {[%emt 0:00:36]} Re6 {[%emt 0:00:00]} 27. Rxd7 {[%emt 0:00:00]} Rf8 {[%emt 0:00:00]} 28. Bd2 {[%emt 0:00:00]} f4 {[%emt 0:00:00]} 29. Bc3+ {[%emt 0:00:00]} Ne5 {[%emt 0:00:00]} 30. Rgg7 {[%emt 0:00:00]} Rc8 {[%emt 0:00:00]} 31. Rxh7+ {[%emt 0:00:00]} Kg8 {[%emt 0:00:00]} 32. Rdg7+ {[%emt 0:00:00]} Kf8 {[%emt 0:00:00]} 33. Bb4+ {[%emt 0:00:00]} 1-0

[Event "22nd Ruzomberok Open 2019"]
[Site "Ruzomberok"]
[Date "2019.07.04"]
[Round "6.17"]
[White "Baleja, Marian"]
[Black "Taragelova, Martina"]
[Result "1-0"]
[ECO "C12"]
[WhiteElo "1951"]
[BlackElo "1719"]
[Annotator "NA"]
[PlyCount "99"]
[EventDate "2019.06.29"]
[EventType "swiss"]
[EventCountry "SVK"]
[SourceTitle "playchess.com"]
[Source "ChessBase"]
[SourceQuality "1"]
[TimeControl "40/5400+30:1800+30"]

1. e4 {[%emt 0:00:40]} e6 {[%emt 0:00:05]} 2. d4 {[%emt 0:00:54]} d5 {[%emt 0:00:43]} 3. Nc3 {[%emt 0:01:12]} Nf6 {[%emt 0:01:03]} 4. Bg5 {[%emt 0:03:11]} Bb4 {[%emt 0:01:42]} 5. e5 {[%emt 0:01:55]} h6 {[%emt 0:00:30]} 6. Bd2 {[%emt 0:03:14]} Bxc3 {[%emt 0:01:20]} 7. Bxc3 {[%emt 0:01:47]} Ne4 {[%emt 0:01:24]} 8. Bb4 {[%emt 0:04:51]} c5 {[%emt 0:03:22]} 9. Bxc5 {[%emt 0:03:26]} Nxc5 {[%emt 0:00:44]} 10. dxc5 {[%emt 0:00:01]} Qa5+ {[%emt 0:00:34]} 11. Qd2 {[%emt 0:00:29]} Qxc5 {[%emt 0:01:36]} 12. Nf3 {[%emt 0:02:54]} Nc6 {[%emt 0:03:55]} 13. c3 {[%emt 0:02:05]} a5 {[%emt 0:03:26]} 14. Bd3 {[%emt 0:01:13]} Bd7 {[%emt 0:05:51]} 15. O-O {[%emt 0:00:31]} O-O {[%emt 0:06:26]} 16. Bc2 {[%emt 0:02:32]} Rfc8 {[%emt 0:06:19]} 17. Rac1 {[%emt 0:06:10]} b5 {[%emt 0:02:34]} 18. Rfe1 {[%emt 0:00:53]} Qb6 {[%emt 0:03:05]} 19. Qd3 {[%emt 0:01:13]} g6 {[%emt 0:00:52]} 20. Nh4 {[%emt 0:00:16]} Be8 {[%emt 0:01:03]} 21. Qd2 {[%emt 0:10:06]} Kh7 {[%emt 0:03:23]} 22. Qf4 {[%emt 0:00:31]} b4 {[%emt 0:04:57]} 23. Re3 {[%emt 0:06:02]} Ne7 {[%emt 0:07:48]} 24. Rh3 {[%emt 0:02:26]} Ng8 {[%emt 0:01:17]} 25. Qd2 {[%emt 0:13:56]} bxc3 {[%emt 0:07:33]} 26. Rxc3 {[%emt 0:00:07]} Rxc3 {[%emt 0:03:14]} 27. Qxc3 {[%emt 0:00:04]} Qb4 {[%emt 0:06:18]} 28. Qxb4 {[%emt 0:01:12]} axb4 {[%emt 0:00:06]} 29. Bb1 {[%emt 0:01:04]} Ne7 {[%emt 0:01:11]} 30. Rc7 {[%emt 0:01:25]} Rc8 {[%emt 0:00:21]} 31. Bxg6+ {[%emt 0:00:24]} Kg8 {[%emt 0:05:09]} 32. Rxc8 {[%emt 0:00:27]} Nxc8 {[%emt 0:00:07]} 33. Bd3 {[%emt 0:00:10]} Nb6 {[%emt 0:00:39]} 34. b3 {[%emt 0:03:26]} Kf8 {[%emt 0:00:51]} 35. Nf3 {[%emt 0:00:54]} Nd7 {[%emt 0:00:58]} 36. Kf1 {[%emt 0:00:09]} Nc5 {[%emt 0:03:53]} 37. Ke2 {[%emt 0:00:20]} Ke7 {[%emt 0:02:11]} 38. Nd4 {[%emt 0:00:58]} f6 {[%emt 0:01:26]} 39. f4 {[%emt 0:04:25]} fxe5 {[%emt 0:03:17]} 40. fxe5 {[%emt 0:00:02]} Bh5+ {[%emt 0:02:05]} 41. Ke3 {[%emt 0:30:30]} Kd7 {[%emt 0:35:56]} 42. Nc2 {[%emt 0:01:25]} Nxd3 {[%emt 0:00:00]} 43. Kxd3 {[%emt 0:00:00]} Bg6+ {[%emt 0:00:00]} 44. Kd2 {[%emt 0:00:00]} Bxc2 {[%emt 0:00:00]} 45. Kxc2 {[%emt 0:00:00]} Ke7 {[%emt 0:00:00]} 46. g4 {[%emt 0:00:00]} Kf7 {[%emt 0:00:00]} 47. h4 {[%emt 0:00:00]} Kg6 {[%emt 0:00:00]} 48. Kd3 {[%emt 0:00:00]} h5 {[%emt 0:00:00]} 49. g5 {[%emt 0:00:00]} Kf5 {[%emt 0:00:00]} 50. Kd4 {[%emt 0:00:00]} 1-0

[Event "22nd Ruzomberok Open 2019"]
[Site "Ruzomberok"]
[Date "2019.07.04"]
[Round "6.18"]
[White "Profant, Jan"]
[Black "Balogh, Peter"]
[Result "0-1"]
[ECO "A50"]
[WhiteElo "1871"]
[BlackElo "2037"]
[Annotator "NA"]
[PlyCount "76"]
[EventDate "2019.06.29"]
[EventType "swiss"]
[EventCountry "SVK"]
[SourceTitle "playchess.com"]
[Source "ChessBase"]
[SourceQuality "1"]
[TimeControl "40/5400+30:1800+30"]

1. d4 {[%emt 0:00:00]} Nf6 {[%emt 0:00:00]} 2. c4 {[%emt 0:00:00]} Nc6 {[%emt 0:00:01]} 3. Nf3 {[%emt 0:00:35]} e6 {[%emt 0:00:27]} 4. a3 {[%emt 0:00:58]} d5 {[%emt 0:00:21]} 5. e3 {[%emt 0:00:26]} Be7 {[%emt 0:00:22]} 6. Nc3 {[%emt 0:00:31]} O-O {[%emt 0:00:11]} 7. b4 {[%emt 0:00:31]} Ne4 {[%emt 0:00:20]} 8. Qc2 {[%emt 0:01:04]} f5 {[%emt 0:00:26]} 9. cxd5 {[%emt 0:02:08]} exd5 {[%emt 0:00:04]} 10. Nxd5 {[%emt 0:01:14]} Kh8 {[%emt 0:00:10]} 11. Nxe7 {[%emt 0:01:21]} Qxe7 {[%emt 0:00:00]} 12. Bd3 {[%emt 0:00:45]} Bd7 {[%emt 0:00:00]} 13. O-O {[%emt 0:01:13]} Be8 {[%emt 0:02:27]} 14. Bb2 {[%emt 0:00:31]} Rd8 {[%emt 0:05:35]} 15. Rac1 {[%emt 0:00:27]} a6 {[%emt 0:00:48]} 16. Ne5 {[%emt 0:21:24]} Nxe5 {[%emt 0:00:33]} 17. dxe5 {[%emt 0:00:02]} Bc6 {[%emt 0:00:17]} 18. f3 {[%emt 0:00:49]} Ng5 {[%emt 0:01:32]} 19. Bxf5 {[%emt 0:00:21]} Nxf3+ {[%emt 0:00:30]} 20. gxf3 {[%emt 0:15:17]} Qg5+ {[%emt 0:00:35]} 21. Kf2 {[%emt 0:04:09]} Rxf5 {[%emt 0:04:41]} 22. f4 {[%emt 0:01:11]} Qh4+ {[%emt 0:01:55]} 23. Kg1 {[%emt 0:00:21]} Qg4+ {[%emt 0:00:32]} 24. Kf2 {[%emt 0:00:15]} Rh5 {[%emt 0:17:58]} 25. Ke1 {[%emt 0:02:08]} Bb5 {[%emt 0:00:59]} 26. Bd4 {[%emt 0:07:31]} Bxf1 {[%emt 0:03:04]} 27. Kxf1 {[%emt 0:00:02]} Rxd4 {[%emt 0:02:17]} 28. exd4 {[%emt 0:02:55]} Qxf4+ {[%emt 0:00:41]} 29. Ke1 {[%emt 0:01:03]} Rxh2 {[%emt 0:02:30]} 30. Qxh2 {[%emt 0:03:36]} Qxh2 {[%emt 0:00:11]} 31. Rxc7 {[%emt 0:00:02]} Kg8 {[%emt 0:01:34]} 32. Rd7 {[%emt 0:02:28]} Qh3 {[%emt 0:04:13]} 33. Rd6 {[%emt 0:00:12]} Kf7 {[%emt 0:00:36]} 34. Kd2 {[%emt 0:01:13]} h5 {[%emt 0:00:15]} 35. Rb6 {[%emt 0:01:39]} Qg2+ {[%emt 0:00:20]} 36. Kc3 {[%emt 0:00:17]} h4 {[%emt 0:00:27]} 37. Kc4 {[%emt 0:00:20]} h3 {[%emt 0:00:20]} 38. d5 {[%emt 0:00:17]} Qe4+ 0-1

[Event "22nd Ruzomberok Open 2019"]
[Site "Ruzomberok"]
[Date "2019.07.04"]
[Round "6.19"]
[White "Mocary, Metod"]
[Black "Bakalar, Jan"]
[Result "1/2-1/2"]
[ECO "A45"]
[WhiteElo "1830"]
[BlackElo "1969"]
[Annotator "NA"]
[PlyCount "39"]
[EventDate "2019.06.29"]
[EventType "swiss"]
[EventCountry "SVK"]
[SourceTitle "playchess.com"]
[Source "ChessBase"]
[SourceQuality "1"]
[TimeControl "40/5400+30:1800+30"]

1. d4 {[%emt 0:00:00]} Nf6 {[%emt 0:01:31]} 2. Bg5 {[%emt 0:00:50]} c5 {[%emt 0:00:27]} 3. Bxf6 {[%emt 0:00:26]} exf6 {[%emt 0:00:39]} 4. c3 {[%emt 0:00:21]} b6 {[%emt 0:03:04]} 5. e3 {[%emt 0:00:22]} Bb7 {[%emt 0:00:15]} 6. Nf3 {[%emt 0:00:17]} Be7 {[%emt 0:01:15]} 7. Nbd2 {[%emt 0:04:02]} O-O {[%emt 0:00:34]} 8. Bd3 {[%emt 0:01:03]} g6 {[%emt 0:01:28]} 9. O-O {[%emt 0:00:10]} f5 {[%emt 0:01:10]} 10. Qc2 {[%emt 0:12:00]} d5 {[%emt 0:02:07]} 11. dxc5 {[%emt 0:04:30]} bxc5 {[%emt 0:06:35]} 12. Rad1 {[%emt 0:01:02]} c4 {[%emt 0:01:05]} 13. Be2 {[%emt 0:00:38]} Qc7 {[%emt 0:00:52]} 14. Nd4 {[%emt 0:00:51]} a6 {[%emt 0:03:40]} 15. Bf3 {[%emt 0:01:51]} Nd7 {[%emt 0:00:42]} 16. Be2 {[%emt 0:03:41]} Rac8 {[%emt 0:00:40]} 17. f4 {[%emt 0:03:07]} Rfe8 {[%emt 0:07:27]} 18. Rf3 {[%emt 0:00:23]} Bc5 {[%emt 0:06:23]} 19. Nf1 {[%emt 0:01:04]} Bxd4 {[%emt 0:04:46]} 20. Rxd4 {[%emt 0:01:02]} 1/2-1/2

[Event "22nd Ruzomberok Open 2019"]
[Site "Ruzomberok"]
[Date "2019.07.04"]
[Round "6.20"]
[White "Koloditsova, Renata"]
[Black "Ucekajova, Veronika"]
[Result "1/2-1/2"]
[ECO "A46"]
[WhiteElo "1903"]
[BlackElo "1836"]
[Annotator "NA"]
[PlyCount "125"]
[EventDate "2019.06.29"]
[EventType "swiss"]
[EventCountry "SVK"]
[SourceTitle "playchess.com"]
[Source "ChessBase"]
[SourceQuality "1"]
[TimeControl "40/5400+30:1800+30"]

1. d4 {[%emt 0:00:00]} Nf6 {[%emt 0:00:00]} 2. Nf3 {[%emt 0:00:00]} e6 {[%emt 0:00:07]} 3. Bf4 {[%emt 0:00:09]} b6 {[%emt 0:00:24]} 4. e3 {[%emt 0:00:33]} Bb7 {[%emt 0:00:19]} 5. Nbd2 {[%emt 0:01:07]} Be7 {[%emt 0:02:39]} 6. h3 {[%emt 0:00:16]} c5 {[%emt 0:00:28]} 7. Bd3 {[%emt 0:02:43]} O-O {[%emt 0:05:02]} 8. c3 {[%emt 0:01:59]} cxd4 {[%emt 0:00:26]} 9. exd4 {[%emt 0:00:37]} d6 {[%emt 0:00:42]} 10. O-O {[%emt 0:01:46]} Nbd7 {[%emt 0:01:30]} 11. Re1 {[%emt 0:01:04]} a6 {[%emt 0:02:29]} 12. a4 {[%emt 0:02:03]} Qc7 {[%emt 0:05:43]} 13. Bh2 {[%emt 0:02:10]} Bc6 {[%emt 0:03:39]} 14. Qb3 {[%emt 0:24:18]} Qb7 {[%emt 0:05:16]} 15. Qa3 {[%emt 0:03:50]} Rfd8 {[%emt 0:07:55]} 16. Bf1 {[%emt 0:04:02]} Nf8 {[%emt 0:01:27]} 17. Qb3 {[%emt 0:02:05]} b5 {[%emt 0:01:52]} 18. axb5 {[%emt 0:00:34]} axb5 {[%emt 0:00:09]} 19. Bd3 {[%emt 0:10:53]} Ng6 {[%emt 0:09:58]} 20. Qc2 {[%emt 0:01:20]} Bd5 {[%emt 0:11:38]} 21. Rxa8 {[%emt 0:06:31]} Rxa8 {[%emt 0:02:05]} 22. Ne4 {[%emt 0:00:19]} Nxe4 {[%emt 0:00:39]} 23. Bxe4 {[%emt 0:00:06]} Bxe4 {[%emt 0:00:30]} 24. Rxe4 {[%emt 0:00:56]} Nh4 {[%emt 0:06:43]} 25. Ne1 {[%emt 0:08:55]} Ra1 {[%emt 0:12:29]} 26. f3 {[%emt 0:01:26]} d5 {[%emt 0:06:39]} 27. Re2 {[%emt 0:01:17]} b4 {[%emt 0:00:16]} 28. Bg3 {[%emt 0:06:12]} Nf5 {[%emt 0:01:24]} 29. Bf2 {[%emt 0:01:21]} g6 {[%emt 0:02:21]} 30. Rd2 {[%emt 0:02:03]} Bg5 {[%emt 0:03:42]} 31. Rd1 {[%emt 0:00:38]} Ne3 {[%emt 0:00:35]} 32. Bxe3 {[%emt 0:00:33]} Bxe3+ {[%emt 0:00:01]} 33. Kf1 {[%emt 0:03:41]} Rxd1 {[%emt 0:00:09]} 34. Qxd1 {[%emt 0:00:11]} bxc3 {[%emt 0:00:05]} 35. bxc3 {[%emt 0:00:21]} Qb2 {[%emt 0:00:05]} 36. Qc2 {[%emt 0:03:32]} Qxc2 {[%emt 0:01:01]} 37. Nxc2 {[%emt 0:00:02]} Bd2 {[%emt 0:00:06]} 38. c4 {[%emt 0:00:30]} dxc4 {[%emt 0:00:12]} 39. Ke2 {[%emt 0:00:14]} c3 {[%emt 0:02:44]} 40. Kd3 {[%emt 0:00:40]} Kg7 {[%emt 0:00:17]} 41. Ke4 {[%emt 0:11:20]} Kf6 {[%emt 0:00:00]} 42. h4 {[%emt 0:03:09]} g5 {[%emt 0:20:20]} 43. h5 {[%emt 0:03:16]} g4 {[%emt 0:00:27]} 44. fxg4 {[%emt 0:01:45]} Kg5 {[%emt 0:00:09]} 45. Kf3 {[%emt 0:00:38]} Bf4 {[%emt 0:02:41]} 46. Ne1 {[%emt 0:02:55]} Bc7 {[%emt 0:00:18]} 47. Nc2 {[%emt 0:02:00]} Bb6 {[%emt 0:01:13]} 48. Kg3 {[%emt 0:01:02]} h6 {[%emt 0:03:05]} 49. Kf3 {[%emt 0:00:51]} f6 {[%emt 0:06:21]} 50. Kg3 {[%emt 0:01:28]} Bc7+ {[%emt 0:00:12]} 51. Kf3 {[%emt 0:00:35]} f5 {[%emt 0:00:20]} 52. gxf5 {[%emt 0:00:29]} exf5 {[%emt 0:00:10]} 53. Ke3 {[%emt 0:05:28]} Kxh5 {[%emt 0:00:27]} 54. Kd3 {[%emt 0:04:25]} Ba5 {[%emt 0:00:24]} 55. Ne3 {[%emt 0:03:04]} f4 {[%emt 0:04:24]} 56. Nd5 {[%emt 0:00:41]} Kg4 {[%emt 0:00:08]} 57. Nxc3 {[%emt 0:00:35]} Bxc3 {[%emt 0:00:06]} 58. Kxc3 {[%emt 0:00:03]} Kg3 {[%emt 0:00:05]} 59. d5 {[%emt 0:00:16]} Kxg2 {[%emt 0:00:08]} 60. d6 {[%emt 0:00:04]} f3 {[%emt 0:00:05]} 61. d7 {[%emt 0:00:15]} f2 {[%emt 0:00:03]} 62. d8=Q {[%emt 0:00:13]} f1=Q {[%emt 0:00:07]} 63. Qd2+ {[%emt 0:01:05]} 1/2-1/2